[Event "37th ECCC 2022"]
[Site "Mayrhofen"]
[Date "2022.10.05"]
[Round "3.46"]
[White "Alonso Rosell, Alvar"]
[Black "Carafizi, Vasile"]
[Result "1-0"]
[ECO "A80"]
[WhiteElo "2563"]
[BlackElo "2132"]
[Annotator "TA"]
[PlyCount "61"]
[EventDate "2022.10.03"]
[EventType "team-tourn"]
[EventCountry "AUT"]
[SourceTitle "playchess.com"]
[Source "ChessBase"]
[SourceQuality "1"]
[TimeControl "40/5400+30:1800+30"]

{[%evp 13,61,9,15,10,66,29,96,98,145,131,114,131,154,151,147,140,156,154,158,150,235,239,234,226,231,226,343,328,576,506,533,558,595,619,606,603,762,755,1144,1125,1223,1210,1850,1850,1637,1512,6759,7559,29984,29984]} 1. d4 {[%emt 0:00:03]} f5 {[%emt 0:00:16]} 2. Nc3 {[%emt 0:03:07]} Nf6 {[%emt 0:00:25]} 3. Bg5 {[%emt 0:00:24]} d5 {[%emt 0:03:46]} 4. Bxf6 {[%emt 0:00:18]} exf6 {[%emt 0:00:08]} 5. e3 {[%emt 0:00:03]} Be6 {[%emt 0:01:17]} 6. Bd3 {[%emt 0:02:04]} c6 {[%emt 0:03:09]} 7. Qf3 {[%emt 0:03:30]} g6 $1 {[%emt 0:01:18]} 8. h3 {[%emt 0:04:28] A80: Dutch Defence: Unusual White second moves.} Qd7 {[%emt 0:10:16] [#]} ({Black should play} 8... h5 $11) 9. g4 $146 {[%emt 0:10:46]} ({Predecessor:} 9. Nge2 b5 10. Nf4 Bb4 11. Nxe6 Qxe6 12. g4 fxg4 13. hxg4 Kf7 14. O-O-O Bxc3 15. bxc3 Nd7 {1-0 (42) Shevchenko,T (2048)-Semenova,E (2152) Pardubice 2013}) 9... fxg4 {[%emt 0:01:18]} (9... Na6 $11) 10. hxg4 $16 {[%emt 0:00:05] Strongly threatening Bxg6+. White is better.} Qg7 {[%emt 0:05:44]} (10... Rg8 $142) 11. Nge2 {[%emt 0:15:40]} Nd7 {[%emt 0:03:06]} 12. e4 {[%emt 0:05:04]} O-O-O {[%emt 0:13:06]} 13. exd5 {[%emt 0:02:42]} cxd5 {[%emt 0:00:18]} 14. Nf4 {[%emt 0:01:41]} (14. Nxd5 Ne5 $1 15. dxe5 Bxd5 $11) 14... Bg8 {[%emt 0:06:50]} 15. Nfxd5 {[%emt 0:01:53] Black must now prevent 0-0-0. Active counter play! Pair of Knights!} f5 {[%emt 0:20:35] [#]} 16. O-O-O $1 {[%emt 0:01:58] Nb5 is the strong threat.} ({Weaker is} 16. Qf4 Nb8 $11) 16... Nf6 {[%emt 0:00:42] [#]} (16... fxg4 $16 {might work better.} 17. Qxg4 Bd6) 17. Nxf6 $1 $40 {[%emt 0:00:48][%mdl 128] White attacks with force.} Qxf6 {[%emt 0:00:07]} 18. gxf5 {[%emt 0:00:16]} Kb8 {[%emt 0:08:29]} 19. Be4 {[%emt 0:06:59][%cal Bd3e4,Be4b7,Bb7d5,Bd5e6][%mdl 32]} g5 {[%emt 0:04:36]} (19... Bg7 {keeps fighting.} 20. Kb1 (20. Bxb7 Qxf5 21. Rhe1 Bc4 $16) 20... Bc4) 20. Bxb7 {[%emt 0:01:55]} Bb4 $2 {[%emt 0:03:17]} (20... g4 21. Qg2 (21. Qxg4 Kxb7 22. Qe4+ Qc6 $14) 21... Qxf5) 21. Nd5 {[%emt 0:06:54]} Bxd5 {[%emt 0:00:43]} 22. Bxd5 {[%emt 0:00:03]} g4 {[%emt 0:01:00]} 23. Qb3 {[%emt 0:00:29]} Qb6 {[%emt 0:00:11]} 24. c4 {[%emt 0:00:29][%cal Bc2c4,Bc4c5][%mdl 32]} h5 {[%emt 0:01:03]} 25. c5 {[%emt 0:01:25]} Qh6+ {[%emt 0:01:01]} 26. Kb1 {[%emt 0:00:07]} Kc7 {[%emt 0:00:08]} 27. Be6 {[%emt 0:00:29]} Rb8 {[%emt 0:00:34]} 28. Qg3+ {[%emt 0:00:56]} Kb7 {[%emt 0:00:43]} 29. Qd6 {[%emt 0:01:20] Qd7+ would kill now.} Rh7 {[%emt 0:03:00] Inhibits Qd7+.} 30. a3 {[%emt 0:01:39]} Ba5 {[%emt 0:01:39]} 31. Rd3 {[%emt 0:00:16] Weighted Error Value: White=0.08 (flawless) /Black=0.51} 1-0

[Event "37th ECCC 2022"]
[Site "Mayrhofen"]
[Date "2022.10.05"]
[Round "3.47"]
[White "Teloeken, Andreas"]
[Black "Forcen Esteban, Daniel"]
[Result "0-1"]
[ECO "A09"]
[WhiteElo "2091"]
[BlackElo "2566"]
[Annotator "TA"]
[PlyCount "78"]
[EventDate "2022.10.03"]
[EventType "team-tourn"]
[EventCountry "AUT"]
[SourceTitle "playchess.com"]
[Source "ChessBase"]
[SourceQuality "1"]
[TimeControl "40/5400+30:1800+30"]

{[%evp 10,78,16,13,36,0,0,-14,-10,-23,-16,-30,-24,-43,0,-37,-22,-110,-108,-101,-116,-121,-95,-116,-120,-166,-89,-202,-146,-157,-168,-175,-158,-154,-182,-198,-226,-291,-300,-458,-431,-445,-376,-624,-610,-709,-429,-1222,-525,-391,-343,-591,-563,-552,-427,-676,-629,-750,-742,-29995,-1015,-985,-977,-955,-944,-1050,-1073,-1441,-1450,-1814,-1782]} 1. Nf3 {[%emt 0:00:02]} d5 {[%emt 0:00:39]} 2. c4 {[%emt 0:00:23]} d4 {[%emt 0:01:21]} 3. b4 {[%emt 0:01:00]} c5 {[%emt 0:02:49]} 4. e3 {[%emt 0:02:12]} dxe3 {[%emt 0:01:27]} 5. fxe3 {[%emt 0:00:07]} cxb4 {[%emt 0:00:04]} 6. d4 {[%emt 0:00:21]} g6 {[%emt 0:06:52] A09: Réti Opening: 1 Nf3 d5 2 c4.} 7. Bd3 {[%emt 0:03:34][%mdl 1024] White has compensation.} Bg7 {[%emt 0:00:46]} 8. Bb2 {[%emt 0:02:14]} Nh6 {[%emt 0:06:25] The position is equal.} 9. O-O {[%emt 0:22:22]} O-O {[%emt 0:01:12]} 10. Qe2 {[%emt 0:09:55] [#]} Nd7 $146 {[%emt 0:00:17][%cal Oe7e5]} ({Predecessor:} 10... Bf5 11. Nbd2 Nc6 12. Ne4 Qc7 13. Rac1 Rad8 14. Rfd1 a5 15. Bb1 Qb8 16. a3 Rfe8 {1-0 (32) Sengupta,D (2571)-Sevgi,V (2183) Golden Sands 2015}) 11. a3 {[%emt 0:02:02]} bxa3 {[%emt 0:02:10]} 12. Rxa3 {[%emt 0:02:56]} e5 {[%emt 0:03:45][%cal Be7e5,Be5e4][%mdl 32]} (12... Re8 $5 {[%cal Re7e5]}) 13. d5 {[%emt 0:12:09]} (13. Nxe5 Nxe5 14. dxe5 Ng4 $17) (13. dxe5 $11 Ng4 14. e6 fxe6 15. Bxg7 Kxg7 16. Qb2+ e5 17. Nbd2) 13... f5 $17 {[%emt 0:11:54]} 14. Bc2 {[%emt 0:02:03]} e4 {[%emt 0:02:13]} 15. Nd4 {[%emt 0:00:48] Strongly threatening Ne6.} Nc5 {[%emt 0:00:06] Inhibits Ne6.} 16. Nd2 {[%emt 0:09:46]} Ng4 {[%emt 0:02:34]} 17. Rb1 {[%emt 0:10:17]} (17. h3 $17 {was necessary.} Ne5 18. Rfa1) 17... Bd7 {[%emt 0:02:29]} (17... Qd6 $19 18. g3 Bd7) 18. Bc1 {[%emt 0:02:54]} (18. h3 $17 {was worth a try.} Ne5 19. N4b3 Nxb3 20. Bxb3) 18... Qg5 {[%emt 0:07:54] White must now prevent ...Rae8.} 19. N2b3 {[%emt 0:04:47]} Nxb3 $40 {[%emt 0:04:16][%mdl 128] Black has strong attack. Black has more active pieces.} 20. Raxb3 {[%emt 0:01:20]} Be5 {[%emt 0:02:51]} 21. g3 {[%emt 0:02:17]} ({But not} 21. Rxb7 $2 Bxh2+ 22. Kf1 Qh4 $1 $19) 21... b6 {[%emt 0:00:08]} 22. Bb2 {[%emt 0:03:46]} h5 {[%emt 0:01:02][%cal Bh7h5,Bh5h4][%mdl 32]} 23. Nb5 {[%emt 0:00:16]} h4 {[%emt 0:02:25]} 24. Bxe5 {[%emt 0:02:54]} (24. gxh4 $142 Qxh4 25. Bxe5 Nxe5 26. Nd4) 24... Nxe5 $19 {[%emt 0:00:07]} 25. Qf2 {[%emt 0:00:48]} hxg3 {[%emt 0:02:06]} 26. hxg3 {[%emt 0:00:05]} (26. Qxg3 Qxg3+ 27. hxg3) 26... Rf7 {[%emt 0:01:57]} 27. Nd4 {[%emt 0:00:21] Prevents Nf3+.} Rh7 {[%emt 0:00:09]} 28. c5 {[%emt 0:00:32]} (28. Qf4 $142 Qh5 29. Qh4 (29. Qxe5 $2 {leads to mate.} Qh1+ 30. Kf2 Rh2#)) 28... Qh5 {[%emt 0:00:57]} (28... Ng4 $142 29. Qg2 Nxe3) 29. Qg2 {[%emt 0:00:27]} bxc5 {[%emt 0:01:14]} 30. Ne6 {[%emt 0:00:46]} (30. Nc6 Bxc6 31. dxc6) 30... Rc8 {[%emt 0:02:19]} 31. Nf4 {[%emt 0:00:39]} Qh2+ {[%emt 0:00:23]} 32. Kf2 {[%emt 0:00:35]} (32. Qxh2 $142 Nf3+ 33. Kf1 Rxh2 34. Bd1 Nd2+ 35. Kg1) 32... Ng4+ {[%emt 0:02:24]} 33. Kf1 {[%emt 0:00:42]} g5 {[%emt 0:02:19]} 34. Ne6 {[%emt 0:01:18] [#]} Qxg2+ {[%emt 0:00:14]} (34... Bb5+ $142 $1 {[%mdl 512]} 35. Rd3 Nxe3+ 36. Kf2 Qxg2+ 37. Kxe3 Rh2 38. Rxb5 Qxg3#) 35. Kxg2 {[%emt 0:00:09] Black is clearly winning.} Rh2+ {[%emt 0:00:19]} 36. Kg1 {[%emt 0:00:01]} Rxc2 {[%emt 0:00:06]} 37. Nxg5 {[%emt 0:00:10]} Rd2 {[%emt 0:00:25]} 38. Rb7 {[%emt 0:00:17]} Rxd5 {[%emt 0:00:12] Threatens to win with ...c4.} 39. Rxa7 {[%emt 0:00:05]} c4 {[%emt 0:00:31] Weighted Error Value: White=0.95/Black=0.53} 0-1

[Event "37th ECCC 2022"]
[Site "Mayrhofen"]
[Date "2022.10.05"]
[Round "3.48"]
[White "Bernadskiy, Vitaliy"]
[Black "Sparwel, Oliver"]
[Result "1-0"]
[ECO "B07"]
[WhiteElo "2570"]
[BlackElo "1976"]
[Annotator "TA"]
[PlyCount "63"]
[EventDate "2022.10.03"]
[EventType "team-tourn"]
[EventCountry "AUT"]
[SourceTitle "playchess.com"]
[Source "ChessBase"]
[SourceQuality "1"]
[TimeControl "40/5400+30:1800+30"]

{[%evp 10,63,68,78,92,34,37,-40,-12,-8,31,0,62,50,116,116,172,143,144,153,199,153,191,195,214,197,305,210,200,205,202,205,222,235,239,237,218,209,231,127,183,138,438,431,542,530,749,535,602,594,585,584,534,536,618,617]} 1. e4 {[%emt 0:00:03]} d6 {[%emt 0:00:17]} 2. d4 {[%emt 0:00:14]} Nf6 {[%emt 0:00:34]} 3. Nc3 {[%emt 0:00:06]} g6 {[%emt 0:00:10]} 4. Bg5 {[%emt 0:00:53]} Nbd7 {[%emt 0:01:04]} 5. f4 {[%emt 0:03:00]} h6 {[%emt 0:01:53]} 6. Bh4 {[%emt 0:00:33]} Bg7 {[%emt 0:10:02] B07: Pirc Defence: Miscellaneous Systems.} 7. Qd2 {[%emt 0:03:52]} (7. e5 $16) 7... c5 $14 {[%emt 0:05:02]} 8. d5 {[%emt 0:02:00]} (8. Nf3 $14) 8... a6 {[%emt 0:02:54] Black is slightly better.} (8... Qa5 $5 {[%cal Ra5b4]}) 9. Nf3 {[%emt 0:02:29]} Qc7 {[%emt 0:02:33]} 10. a4 {[%emt 0:01:32] Prevents b5.} O-O {[%emt 0:01:52]} (10... Nh5 $11) 11. Bc4 {[%emt 0:01:43] [#]} Kh7 $146 {[%emt 0:18:38]} (11... Qa5 $14) ({Predecessor:} 11... Rb8 12. O-O Nb6 13. Be2 Nbd7 14. e5 dxe5 15. fxe5 Nxe5 16. Nxe5 Qxe5 17. Bg3 Qd4+ 18. Qxd4 cxd4 19. Bxb8 dxc3 {1-0 (105) Kabisch,T (2327)-Anistratov,D (2317) Illertissen 2005}) 12. O-O $16 {[%emt 0:00:42]} b6 {[%emt 0:10:06]} (12... Nh5 $16) 13. Rae1 {[%emt 0:00:21]} Ng8 {[%emt 0:00:48]} 14. h3 {[%emt 0:05:43] White is much more active.} Bb7 {[%emt 0:05:00]} (14... Bxc3 $16 15. bxc3 (15. Qxc3 Rb8 $16) 15... b5) 15. g4 {[%emt 0:01:32]} ({Better is} 15. b3 $18) 15... Rae8 {[%emt 0:00:30]} 16. Bg3 {[%emt 0:00:03]} Bxc3 {[%emt 0:22:38]} 17. bxc3 {[%emt 0:00:47]} Bc8 {[%emt 0:00:06]} (17... Ngf6 $142 18. e5 b5) 18. f5 {[%emt 0:02:51]} Ne5 {[%emt 0:00:26]} 19. Bxe5 {[%emt 0:01:16]} dxe5 {[%emt 0:00:07]} 20. Qh2 {[%emt 0:00:45]} Nf6 {[%emt 0:15:07]} 21. Qxe5 {[%emt 0:01:06]} ({Don't play} 21. Nxe5 $6 Nd7) 21... Qxe5 {[%emt 0:00:17]} 22. Nxe5 {[%emt 0:00:04]} gxf5 {[%emt 0:00:06]} 23. exf5 {[%emt 0:01:19]} ({Resist} 23. gxf5 Nd7) 23... Kg7 {[%emt 0:01:12]} 24. Nc6 {[%emt 0:00:18]} (24. Rb1 $18) 24... Bb7 {[%emt 0:00:29]} (24... Bd7 $16 25. Rb1 (25. Nxe7 b5 $16) 25... e6) 25. Rb1 {[%emt 0:00:49]} Ne4 $2 {[%emt 0:00:29][%mdl 8192] [#] Black cannot hold the game after this.} (25... b5 $16) 26. Rxb6 $18 {[%emt 0:00:10] White is clearly winning.} Bxc6 {[%emt 0:00:01]} 27. dxc6 {[%emt 0:00:19][%cal Bd5c6,Bc6c7][%mdl 32]} Nxc3 {[%emt 0:00:02]} 28. Rb7 {[%emt 0:00:26]} Nxa4 {[%emt 0:00:06] [#]} 29. Rxe7 $3 {[%emt 0:00:26][%mdl 512] Hoping for f6+.} Kf6 {[%emt 0:00:14]} 30. Rxe8 {[%emt 0:00:14]} Rxe8 {[%emt 0:00:00]} 31. Bxa6 {[%emt 0:00:08] Threatens to win with c7.} Nb6 {[%emt 0:00:16]} 32. c7 {[%emt 0:00:13] Weighted Error Value: White=0.31/Black=0.52} 1-0

[Event "37th ECCC 2022"]
[Site "Mayrhofen"]
[Date "2022.10.05"]
[Round "3.49"]
[White "Blomqvist, Erik"]
[Black "Alinasab, Mobina"]
[Result "1-0"]
[ECO "B50"]
[WhiteElo "2526"]
[BlackElo "2314"]
[Annotator "TA"]
[PlyCount "147"]
[EventDate "2022.10.03"]
[EventType "team-tourn"]
[EventCountry "AUT"]
[SourceTitle "playchess.com"]
[Source "ChessBase"]
[SourceQuality "1"]
[TimeControl "40/5400+30:1800+30"]

{[%evp 9,147,0,10,0,4,0,2,4,18,0,0,-4,12,9,39,48,50,0,0,0,0,0,0,0,0,0,0,0,2,-12,-6,-18,-9,-8,-4,-7,0,-12,0,-33,-10,-52,-18,-14,11,14,82,39,92,91,88,95,91,90,95,91,95,103,184,199,182,181,272,202,259,262,258,250,345,253,256,247,240,222,204,204,204,164,287,199,205,191,191,166,243,245,245,245,242,228,206,197,356,266,399,399,451,451,489,489,548,548,802,743,1729,1367,5628,6514,10649,9112,10992,6753,6950,3931,5600,1055,1991,2875,4670,2762,3408,2802,1314,821,10992,4710,29976,29976,29982,29983,29973,29972,29988,29985,29985,29986,29989,29990,29990,29991]} 1. e4 {[%emt 0:00:05]} c5 {[%emt 0:00:24]} 2. Nf3 {[%emt 0:00:10]} d6 {[%emt 0:00:12]} 3. Bc4 {[%emt 0:00:16]} Nf6 {[%emt 0:00:41]} 4. d3 {[%emt 0:00:10]} a6 {[%emt 0:01:29]} 5. O-O {[%emt 0:00:58]} Nc6 {[%emt 0:01:02]} 6. Re1 {[%emt 0:09:11] B50: Sicilian: 2...d6, Miscellaneous.} e6 {[%emt 0:04:57] [#]} 7. d4 $146 {[%emt 0:01:31]} ({Predecessor:} 7. a4 Be7 8. Bb3 O-O 9. c3 d5 10. e5 Nd7 11. Bf4 Re8 12. Nbd2 Nf8 13. Bg3 {1-0 (26) Repkova,E (2329)-Chovan,M (2207) Slovakia 2017}) 7... cxd4 {[%emt 0:04:13]} 8. Nxd4 {[%emt 0:00:08] The position is equal.} Qc7 {[%emt 0:02:36]} 9. Bf1 {[%emt 0:05:35]} Be7 {[%emt 0:06:56]} 10. c4 {[%emt 0:01:39]} O-O {[%emt 0:03:49]} 11. Nc3 {[%emt 0:02:08]} b6 {[%emt 0:05:11][%cal Bb7b6,Bb6b5][%mdl 32]} 12. Nxc6 {[%emt 0:14:43]} Qxc6 {[%emt 0:00:07]} 13. b3 {[%emt 0:00:34]} (13. Bf4 $14) 13... b5 $11 {[%emt 0:17:54]} 14. Ba3 {[%emt 0:10:58]} Rb8 {[%emt 0:01:26]} 15. e5 {[%emt 0:09:02]} b4 $1 {[%emt 0:00:55]} 16. exf6 {[%emt 0:00:28]} Bxf6 {[%emt 0:00:07]} 17. Bxb4 {[%emt 0:00:51]} Rxb4 {[%emt 0:00:02]} 18. Rc1 {[%emt 0:00:46]} Rb8 {[%emt 0:02:57]} 19. Rc2 {[%emt 0:05:48]} Bb7 {[%emt 0:00:40]} 20. b4 {[%emt 0:00:24]} Qc7 {[%emt 0:12:28]} 21. a3 {[%emt 0:02:08]} Rfd8 {[%emt 0:01:08]} 22. Ne4 {[%emt 0:06:08]} Be7 {[%emt 0:01:14]} 23. Qh5 {[%emt 0:01:55]} h6 {[%emt 0:07:26] Against Ng5} 24. Bd3 {[%emt 0:01:32][%cal Bf1d3,Bd3e4,Be4f5][%mdl 32]} Qc6 {[%emt 0:06:32]} 25. Re3 {[%emt 0:11:15] [#] Strongly threatening Rg3.} Qe8 {[%emt 0:12:06]} 26. Rg3 {[%emt 0:03:45]} Bxe4 {[%emt 0:01:10]} 27. Bxe4 {[%emt 0:00:21]} Kh8 {[%emt 0:00:46]} (27... Bg5 $11 {keeps the balance.}) 28. Qa5 $40 {[%emt 0:01:49][%mdl 128] White has some attack.} ({But not} 28. Qg4 $6 Bf6 $11) 28... Bf6 {[%emt 0:03:56]} (28... d5 $14 29. cxd5 exd5) 29. Qxa6 $16 {[%emt 0:01:20] White stays focused until the end.} d5 {[%emt 0:00:03]} 30. cxd5 {[%emt 0:00:18]} exd5 {[%emt 0:00:04]} 31. Bf5 {[%emt 0:01:32]} Qe5 {[%emt 0:01:19]} 32. Rf3 {[%emt 0:01:36]} Ra8 {[%emt 0:00:47]} 33. Qf1 {[%emt 0:01:03] Active counter play!} Re8 {[%emt 0:01:35]} (33... g6 $16) 34. g3 $18 {[%emt 0:00:25]} Qd6 {[%emt 0:00:43]} 35. Qb5 {[%emt 0:01:34]} d4 {[%emt 0:00:27]} (35... Rab8 $142 36. Qc6 Qxc6 37. Rxc6 Kg8) 36. Bd3 {[%emt 0:00:48] [#] Threatens to win with Qf5.} Re5 {[%emt 0:00:35] Prevents Qf5.} 37. Qb7 {[%emt 0:00:29][%csl LRa8,LRf7]} Rf8 {[%emt 0:00:29]} 38. Rc7 {[%emt 0:03:15]} Kg8 {[%emt 0:00:26]} 39. Kg2 {[%emt 0:00:42] Hoping for b5.} Re7 {[%emt 0:00:33]} 40. Rxe7 {[%emt 0:00:15]} Qxe7 {[%emt 0:00:26]} 41. Qd5 {[%emt 0:31:32]} Qe6 {[%emt 0:05:20]} 42. Qxe6 {[%emt 0:00:00]} fxe6 {[%emt 0:00:02][%mdl 4096] Endgame KRB-KRB} 43. Bg6 {[%emt 0:00:00]} Rc8 {[%emt 0:08:16]} (43... Ra8 {keeps fighting.} 44. b5 Ra7) 44. h4 {[%emt 0:00:00]} Rc3 {[%emt 0:04:40]} 45. h5 {[%emt 0:00:00]} Kf8 {[%emt 0:00:48]} 46. a4 {[%emt 0:00:00][%cal Ba3a4,Ba4a5,Ba5a6][%mdl 32]} Rc4 {[%emt 0:07:15]} (46... Ke7 {is a better defense.} 47. a5 Kd6) 47. a5 {[%emt 0:00:00]} Rxb4 {[%emt 0:00:06]} 48. Ra3 {[%emt 0:00:00] Against Ra4. aiming for a6.} Rb7 {[%emt 0:07:35]} 49. a6 {[%emt 0:00:00]} Ra7 {[%emt 0:00:03]} 50. Be4 {[%emt 0:00:00]} Ke7 $2 {[%emt 0:00:13]} (50... d3 51. Bxd3 Bd4) 51. Bb7 {[%emt 0:00:00]} Kd6 {[%emt 0:01:08]} (51... Bg5 $142 52. Kf3 (52. f4 Bf6 $18) 52... Kd6) 52. Ra5 {[%emt 0:00:00]} Kc7 {[%emt 0:00:40]} 53. Rb5 {[%emt 0:00:00]} Kd6 {[%emt 0:00:29]} 54. Kf3 {[%emt 0:00:00]} Ke7 {[%emt 0:00:32]} 55. Ke4 {[%emt 0:00:00]} Kd6 {[%emt 0:00:30]} 56. f4 {[%emt 0:00:04]} Kc7 {[%emt 0:00:28]} 57. g4 {[%emt 0:00:20][%cal Bg3g4,Bg4g5][%mdl 32] g5 is the strong threat.} Kd6 {[%emt 0:00:07]} 58. g5 {[%emt 0:00:14]} Bd8 {[%emt 0:00:43]} 59. Kxd4 {[%emt 0:00:13]} Bc7 {[%emt 0:00:39]} 60. Ke4 {[%emt 0:00:09] White threatens Rb1 and mate.} Bd8 {[%emt 0:00:10]} 61. Kf3 {[%emt 0:00:59]} Kd7 {[%emt 0:00:38]} 62. Kg4 {[%emt 0:00:35]} (62. gxh6 $142 gxh6 63. Rb2) 62... Kd6 {[%emt 0:00:17]} 63. Rb1 {[%emt 0:00:16] Black must now prevent Rd1+.} Ke7 {[%emt 0:00:55]} 64. Rc1 {[%emt 0:00:23] And now Kf3 would win.} Kd7 {[%emt 0:00:31]} 65. Rd1+ {[%emt 0:00:33]} Ke7 {[%emt 0:00:02]} 66. Kf3 {[%emt 0:00:21]} Ke8 {[%emt 0:00:53]} 67. Rg1 {[%emt 0:00:32]} (67. gxh6 $142 gxh6 68. Rg1) 67... hxg5 {[%emt 0:00:37]} 68. fxg5 {[%emt 0:00:07][%cal Bf4g5,Bg5g6][%mdl 32] White mates.} Kf7 {[%emt 0:00:26]} 69. g6+ {[%emt 0:00:22]} Kf8 {[%emt 0:00:27]} 70. Rc1 {[%emt 0:00:21]} Bg5 {[%emt 0:00:37]} 71. Rc8+ {[%emt 0:00:35]} Ke7 {[%emt 0:00:10]} 72. Rc7+ {[%emt 0:00:08]} Kf8 {[%emt 0:00:09]} 73. Ke4 {[%emt 0:00:19]} Bf6 {[%emt 0:00:47]} 74. h6 {[%emt 0:00:18] Weighted Error Value: White=0.14 (very precise) /Black=0.29 (precise)} 1-0

[Event "37th ECCC 2022"]
[Site "Mayrhofen"]
[Date "2022.10.05"]
[Round "3.50"]
[White "Baglan, Esat"]
[Black "Seo, Jung Min"]
[Result "1/2-1/2"]
[ECO "C02"]
[WhiteElo "2331"]
[BlackElo "2520"]
[Annotator "TA"]
[PlyCount "92"]
[EventDate "2022.10.03"]
[EventType "team-tourn"]
[EventCountry "AUT"]
[SourceTitle "playchess.com"]
[Source "ChessBase"]
[SourceQuality "1"]
[TimeControl "40/5400+30:1800+30"]

{[%evp 17,92,0,29,27,27,25,27,13,48,45,49,19,27,20,46,16,26,25,22,13,24,20,27,22,23,20,7,0,17,0,9,0,0,-11,-12,-7,0,0,0,0,0,0,0,0,0,-16,-16,-16,-17,-11,-16,-13,0,-30,-12,-10,-10,-10,-10,-10,-8,-10,0,0,0,0,0,0,0,0,0,0,0,0,0,0,0]} 1. e4 {[%emt 0:00:02]} e6 {[%emt 0:00:09]} 2. d4 {[%emt 0:01:33]} d5 {[%emt 0:00:02]} 3. e5 {[%emt 0:00:24]} c5 {[%emt 0:00:05]} 4. c3 {[%emt 0:00:03]} Qb6 {[%emt 0:00:29]} 5. Nf3 {[%emt 0:00:09]} Nc6 {[%emt 0:00:39]} 6. Be2 {[%emt 0:02:56]} cxd4 {[%emt 0:01:43]} 7. cxd4 {[%emt 0:00:08]} Nge7 {[%emt 0:00:33]} 8. Na3 {[%emt 0:00:40]} Nf5 {[%emt 0:01:18]} 9. Nc2 {[%emt 0:00:11]} Nb4 {[%emt 0:05:17]} 10. Ne3 {[%emt 0:03:16] C02: French: Advance Variation.} Nxe3 {[%emt 0:00:03]} 11. Bxe3 {[%emt 0:01:43]} Bd7 {[%emt 0:00:45]} 12. a3 {[%emt 0:04:04] White has an edge.} Na6 {[%emt 0:03:33]} 13. O-O {[%emt 0:01:43]} Be7 {[%emt 0:01:27] [#]} 14. Ne1 $146 {[%emt 0:12:02]} ({Predecessor:} 14. b4 O-O 15. Bg5 f6 16. exf6 Bxf6 17. Bxf6 Rxf6 18. Rc1 Nc7 19. Ne5 Be8 20. Rc5 {1-0 (36) Raicu,C-Murariu,A (2090) Romania 1999}) 14... O-O {[%emt 0:03:04]} 15. Nd3 {[%emt 0:01:07]} Rfc8 {[%emt 0:02:10]} 16. Qd2 {[%emt 0:02:02]} Ba4 {[%emt 0:02:48]} 17. Rac1 {[%emt 0:05:09] Prevents Rc2.} Bb5 {[%emt 0:01:27]} 18. f4 {[%emt 0:02:01]} Rxc1 {[%emt 0:00:20]} 19. Rxc1 {[%emt 0:02:07]} Qd8 {[%emt 0:01:37]} 20. Bd1 {[%emt 0:06:36]} Rc8 {[%emt 0:00:21]} 21. Rxc8 {[%emt 0:01:08]} Qxc8 {[%emt 0:00:03]} 22. Bc2 {[%emt 0:05:22]} Nb8 {[%emt 0:03:06]} 23. a4 {[%emt 0:07:15]} Bd7 {[%emt 0:03:51]} 24. Nc5 {[%emt 0:11:39][%cal Bd3c5,Bc5e4,Be4g5][%mdl 32]} Be8 {[%emt 0:01:59]} 25. Qc3 {[%emt 0:04:00]} b6 {[%emt 0:05:00]} 26. Ne4 {[%emt 0:00:39]} Qd8 {[%emt 0:07:16]} 27. Ng5 {[%emt 0:01:56]} h6 {[%emt 0:03:21]} 28. Nf3 {[%emt 0:00:48]} Nc6 {[%emt 0:01:31]} 29. f5 {[%emt 0:00:58]} exf5 {[%emt 0:00:58]} 30. Bxf5 {[%emt 0:00:37]} Bd7 {[%emt 0:04:13][%cal Be8d7,Bd7e6,Be6f5,Bf5e4][%mdl 32]} 31. e6 {[%emt 0:08:53]} fxe6 {[%emt 0:00:07]} 32. Bxe6+ {[%emt 0:00:10]} Bxe6 {[%emt 0:00:02]} 33. Qxc6 {[%emt 0:00:07]} Bf5 {[%emt 0:09:34]} 34. Bf4 {[%emt 0:02:08]} Be4 {[%emt 0:03:31]} 35. Ne5 {[%emt 0:08:06]} Bf6 {[%emt 0:05:03]} 36. Qe6+ {[%emt 0:00:53] The position is equal.} Kh7 {[%emt 0:00:04] Threatens to win with ...Bxe5.} 37. Nc6 {[%emt 0:00:29][%csl LRa7,LRd8]} Qf8 {[%emt 0:00:55][%cal Of6d4] [#] aiming for ...Bxd4+!} 38. Bd6 {[%emt 0:00:41]} Qa8 {[%emt 0:02:37]} 39. Qd7 {[%emt 0:02:51]} a5 {[%emt 0:00:17] Strongly threatening ...Qa6.} 40. Be7 {[%emt 0:02:19]} Bxe7 {[%emt 0:03:55]} 41. Nxe7 $11 {[%emt 0:02:36][%mdl 4096] Endgame KQB-KQN} Qf8 {[%emt 0:03:12]} 42. Qe6 {[%emt 0:09:40]} ({Don't go for} 42. Nxd5 $2 Bd3 43. Ne3 Qb4 $19) 42... Bd3 {[%emt 0:00:07][%csl Gd3][%cal Rf8f1] [#]} 43. h3 {[%emt 0:01:45] Active counter play!} Qf1+ {[%emt 0:00:09]} 44. Kh2 {[%emt 0:00:04][%csl Ge7][%cal Re6g8]} Qf4+ {[%emt 0:00:02]} 45. Kh1 {[%emt 0:00:46][%csl Ge7][%cal Re6g8]} Qf1+ {[%emt 0:00:05]} 46. Kh2 {[%emt 0:00:02][%csl Ge7][%cal Re6g8]} Qf4+ {[%emt 0:00:07] Weighted Error Value: White=0.05 (flawless) /Black=0.05 (flawless)} 1/2-1/2